fUST/lending_fUST_20260421
["ID","MTS","AMOUNT","RATE_DAILY","PERIOD"]
[420941850,1776766238664,-500.0,0.00011603,2]
[420941851,1776766238674,-500.0,0.00011603,2]
[420941852,1776766238684,-551.31701662,0.00011603,2]
[420941853,1776766238693,-500.0,0.00011603,2]
[420941854,1776766238703,-500.0,0.00011603,2]
[420941855,1776766238712,-500.0,0.00011603,2]
[420941856,1776766238721,-500.0,0.00011603,2]
[420941857,1776766238730,-500.0,0.00011603,2]
[420941858,1776766238739,-500.0,0.00011603,2]
[420941859,1776766238749,-500.0,0.00011603,2]
[420941860,1776766238758,-500.0,0.00011603,2]
[420941861,1776766238767,-500.0,0.00011603,2]
[420941862,1776766238776,-500.0,0.00011603,2]
[420941863,1776766238785,-500.0,0.00011603,2]
[420941864,1776766238795,-437.23048436,0.00011603,2]
[420941865,1776766238966,-500.0,0.00011603,2]
[420941866,1776766238986,-500.0,0.00011603,2]
[420941867,1776766238995,-500.0,0.00011603,2]
[420941868,1776766239005,-500.0,0.00011603,2]
[420941869,1776766239014,-500.0,0.00011603,2]
[420941870,1776766239023,-500.0,0.00011603,2]
[420941871,1776766239032,-500.0,0.00011603,2]
[420941872,1776766239042,-500.0,0.00011603,2]
[420941873,1776766239051,-500.0,0.00011603,2]
[420941874,1776766239060,-24511.720602,0.00011605,2]
[420941875,1776766239069,-1810.2053021,0.00011654,2]
[420941876,1776766239078,-152.0,0.00011747,7]
[420941877,1776766239087,-152.0,0.00011747,7]
[420941878,1776766239096,-3968.83319717,0.00011785,2]
[420941879,1776766239106,-151.0,0.000118,2]
[420941880,1776766239115,-420.0,0.00011824,2]
[420941881,1776766239124,-1749.610598,0.00011825,2]
[420941882,1776766239133,-104630.21165944,0.00011825,2]
[420941883,1776766239146,-18646.02527327,0.00011825,2]
[420941884,1776766239156,-1224.85871026,0.00011825,2]
[420941885,1776766239180,-647.81,0.00011825,2]
[420941927,1776766246036,-7462.36427349,0.00011825,2]
[420941928,1776766246049,-6217.4680283,0.00011825,2]
[420941929,1776766246060,-23785.48540802,0.00011825,2]
[420941990,1776767272279,500.0,0.00025924,120]
[420941991,1776767272507,500.0,0.00025924,120]
[420942065,1776767431979,-388.62202371,0.00010271,10]
[420942069,1776767431989,-5000.0,0.00010375,10]
[420942073,1776767431999,-567.0,0.0001048,2]
[420942076,1776767432008,-284.84148833,0.00010533,2]
[420942079,1776767432017,-243.2881737,0.00010697,2]
[420942081,1776767432026,-300.0,0.00010958,2]
[420942084,1776767432036,-1200.0,0.00010958,2]
[420942087,1776767432045,-15380.3736,0.00010959,2]
[420942089,1776767432054,-213.15007366,0.00011187,2]
[420942091,1776767432064,-827.40937842,0.00011424,2]
[420942092,1776767432073,-827.40937841,0.00011424,2]
[420942094,1776767432083,-827.40937841,0.00011425,2]
[420942096,1776767432093,-827.40937841,0.00011425,2]
[420942098,1776767432102,-827.40937841,0.00011425,2]
[420942100,1776767432112,-500.0,0.00011523,2]
[420942102,1776767432121,-572.52058489,0.00011523,2]
[420942104,1776767432130,-500.0,0.00011523,2]
[420942106,1776767432139,-500.0,0.00011523,2]
[420942108,1776767432149,-500.0,0.00011523,2]
[420942109,1776767432158,-500.0,0.00011523,2]
[420942111,1776767432167,-500.0,0.00011523,2]
[420942113,1776767432177,-500.0,0.00011523,2]
[420942115,1776767432186,-500.0,0.00011523,2]
[420942117,1776767432195,-500.0,0.00011523,2]
[420942119,1776767432205,-500.0,0.00011523,2]
[420942121,1776767432215,-257.0591773,0.00011523,2]
[420942123,1776767432224,-500.0,0.00011523,2]
[420942124,1776767432233,-500.0,0.00011523,2]
[420942125,1776767432243,-500.0,0.00011523,2]
[420942126,1776767432253,-500.0,0.00011523,2]
[420942127,1776767432262,-500.0,0.00011523,2]
[420942128,1776767432272,-500.0,0.00011523,2]
[420942129,1776767432281,-500.0,0.00011523,2]
[420942130,1776767432290,-500.0,0.00011523,2]
[420942131,1776767432299,-500.0,0.00011523,2]
[420942132,1776767432308,-500.0,0.00011523,2]
[420942133,1776767432317,-15739.47225036,0.00011524,2]
[420942134,1776767432327,-797.17542112,0.00011524,2]
[420942135,1776767432336,-442.49091809,0.00011524,2]
[420942136,1776767432345,-797.17542112,0.00011524,2]
[420942137,1776767432354,-797.17542112,0.00011524,2]
[420942138,1776767432363,-797.17542112,0.00011524,2]
[420942139,1776767432373,-797.17542112,0.00011524,2]
[420942140,1776767432382,-797.17542112,0.00011524,2]
[420942141,1776767432391,-797.17542112,0.00011524,2]
[420942142,1776767432400,-797.17542112,0.00011524,2]
[420942143,1776767432410,-797.17542112,0.00011524,2]
[420942144,1776767432419,-797.17542112,0.00011524,2]
[420942145,1776767432428,-797.17542112,0.00011524,2]
[420942146,1776767432438,-797.17542112,0.00011524,2]
[420942147,1776767432447,-797.17542112,0.00011524,2]
[420942148,1776767432456,-797.17542112,0.00011524,2]
[420942149,1776767432466,-797.17542112,0.00011524,2]
[420942150,1776767432476,-797.17542112,0.00011524,2]
[420942151,1776767432485,-797.17542112,0.00011524,2]
[420942152,1776767432498,-837.03419218,0.00011524,2]
[420942153,1776767432507,-837.03419218,0.00011524,2]
[420942154,1776767432516,-837.03419218,0.00011524,2]
[420942155,1776767432525,-837.03419218,0.00011524,2]
[420942156,1776767432534,-837.03419218,0.00011524,2]
[420942157,1776767432544,-837.03419218,0.00011524,2]
[420942158,1776767432553,-837.03419218,0.00011524,2]
[420942159,1776767432563,-837.03419218,0.00011524,2]
[420942160,1776767432572,-837.03419218,0.00011524,2]
[420942161,1776767432581,-837.03419218,0.00011524,2]
[420942162,1776767432591,-937.4782952,0.00011524,2]
[420942163,1776767432600,-100635.67895102,0.00011525,2]
[420942164,1776767432634,-500.0,0.00011523,2]
[420942165,1776767432643,-500.0,0.00011523,2]
[420942166,1776767432652,-500.0,0.00011523,2]
[420942167,1776767432662,-500.0,0.00011523,2]
[420942168,1776767432671,-500.0,0.00011523,2]
[420942169,1776767432681,-606.52352765,0.00011523,2]
[420942170,1776767432690,-9473.57472568,0.00011525,2]
[420942208,1776767438258,-627.40185004,0.00011187,2]
[420942210,1776767438267,-500.0,0.00011523,2]
[420942212,1776767438277,-500.0,0.00011523,2]
[420942215,1776767438287,-500.0,0.00011523,2]
[420942217,1776767438296,-500.0,0.00011523,2]
[420942219,1776767438305,-500.0,0.00011523,2]
[420942220,1776767438315,-500.0,0.00011523,2]
[420942222,1776767438325,-500.0,0.00011523,2]
[420942224,1776767438335,-278.94332675,0.00011523,2]
[420942226,1776767438344,-500.0,0.00011523,2]
[420942228,1776767438354,-500.0,0.00011523,2]
[420942229,1776767438364,-500.0,0.00011523,2]
[420942231,1776767438373,-500.0,0.00011523,2]
[420942233,1776767438383,-500.0,0.00011523,2]
[420942235,1776767438393,-500.0,0.00011523,2]
[420942237,1776767438402,-500.0,0.00011523,2]
[420942239,1776767438412,-500.0,0.00011523,2]
[420942241,1776767438422,-500.0,0.00011523,2]
[420942243,1776767438432,-500.0,0.00011523,2]
[420942245,1776767438442,-500.0,0.00011523,2]
[420942247,1776767438452,-500.0,0.00011523,2]
[420942249,1776767438461,-500.0,0.00011523,2]
[420942251,1776767438471,-500.0,0.00011523,2]
[420942253,1776767438481,-500.0,0.00011523,2]
[420942255,1776767438491,-500.0,0.00011523,2]
[420942258,1776767438501,-500.0,0.00011523,2]
[420942261,1776767438510,-500.0,0.00011523,2]
[420942264,1776767438520,-500.0,0.00011523,2]
[420942266,1776767438529,-500.0,0.00011523,2]
[420942268,1776767438539,-500.0,0.00011523,2]
[420942271,1776767438548,-500.0,0.00011523,2]
[420942273,1776767438557,-500.0,0.00011523,2]
[420942275,1776767438566,-500.0,0.00011523,2]
[420942276,1776767438576,-168.5791699,0.00011523,2]
[420942279,1776767438585,-500.0,0.00011523,2]
[420942280,1776767438595,-500.0,0.00011523,2]
[420942282,1776767438604,-500.0,0.00011523,2]
[420942284,1776767438613,-500.0,0.00011523,2]
[420942286,1776767438623,-500.0,0.00011523,2]
[420942288,1776767438633,-500.0,0.00011523,2]
[420942289,1776767438642,-500.0,0.00011523,2]
[420942291,1776767438652,-500.0,0.00011523,2]
[420942293,1776767438661,-500.0,0.00011523,2]
[420942295,1776767438670,-500.0,0.00011523,2]
[420942296,1776767438679,-500.0,0.00011523,2]
[420942297,1776767438688,-15216.42454292,0.00011525,2]
[420942298,1776767438711,-1042.37256033,0.00011525,2]
[420942299,1776767438722,-2701.67071023,0.00011525,2]
[420942335,1776767440676,-459.34763194,0.00011525,2]
[420942344,1776767443097,-589.27131752,0.00011525,2]
[420942348,1776767446242,-14301.95059916,0.00011525,2]
[420942354,1776767500897,-1103.49342574,0.00011183,2]
[420942439,1776767979716,-1837.0,9.998e-05,2]
[420942446,1776768035412,200.81374,4.009e-05,2]
[420942447,1776768319911,-2417.34155071,9.604e-05,2]
[420942448,1776768319933,-554.0,9.604e-05,2]
[420942449,1776768417829,-1000.0,9.459e-05,2]
[420942450,1776768437295,-1300.0,9.364e-05,2]
[420942451,1776768456002,-866.0,9.126e-05,2]
[420942452,1776768485456,305.75,0.00025911,120]
[420942453,1776768498606,-609.9756925,9.126e-05,2]
[420942454,1776768498629,-548.0,9.126e-05,2]
[420942598,1776768638587,-1160.93249377,9.176e-05,2]
[420942599,1776768638597,-549.0,9.176e-05,2]
[420942600,1776768638607,-315.69210798,9.223e-05,2]
[420942601,1776768638616,-1200.0,9.269e-05,2]
[420942602,1776768638626,-5000.0,9.27e-05,10]
[420942603,1776768638635,-2694.94988552,9.27e-05,2]
[420942638,1776768643377,-791.14041104,9.177e-05,2]
[420942639,1776768643389,-2411.58604863,9.177e-05,2]
[420942640,1776768643398,-754.89040423,9.27e-05,2]
[420942641,1776768643409,-1275.38190145,9.27e-05,2]
[420942642,1776768643423,-274.7778088,9.27e-05,2]
[420942643,1776768643432,-300.0,9.363e-05,2]
[420942644,1776768643442,-300.0,9.363e-05,2]
[420942645,1776768643451,-300.0,9.363e-05,2]
[420942646,1776768643460,-300.0,9.363e-05,2]
[420942647,1776768643470,-337.02459383,0.0001,2]
[420942648,1776768643480,-77.10087948,0.00010196,2]
[420942649,1776768643491,-1602.89912052,0.00010196,2]
[420942650,1776768643500,-237.91,0.00010223,2]
[420942651,1776768643509,-300.0,0.00010299,2]
[420942652,1776768643518,-253.58906932,0.00010299,2]
[420942691,1776768646316,-166.41093068,0.00010299,2]
[420942693,1776768646326,-456.87890236,0.00010351,2]
[420942695,1776768646337,-1906.44811364,0.00010351,2]
[420942697,1776768646346,-5000.0,0.000104,4]
[420942699,1776768646355,-5000.0,0.000104,2]
[420942701,1776768646366,-5000.0,0.000104,6]
[420942703,1776768646375,-1465.58973041,0.000104,8]
[420942706,1776768646393,-3534.41026959,0.000104,8]
[420942708,1776768646403,-3210.58458793,0.000104,10]
[420942711,1776769220921,-163.778413,4.7e-05,2]
[420942712,1776769235855,-4836.221587,5.428e-05,2]
[420942713,1776769235882,-163.778413,5.428e-05,2]
[420942714,1776769235905,-500.0,5.483e-05,2]
[420942715,1776769235926,-163.778413,5.483e-05,2]
[420942716,1776769241915,-163.778413,6.267e-05,2]
[420942717,1776769247232,-163.778413,7.05e-05,2]
[420942718,1776769247255,-3681.107935,7.6e-05,2]
[420942719,1776769261228,-5000.0,7.524e-05,2]
[420942720,1776769261252,-5000.0,7.6e-05,2]
[420942721,1776769262102,-1692.81487939,7.6e-05,2]
[420942722,1776769265416,-5981.53174861,7.6e-05,2]
[420942723,1776769265440,-163.778413,7.833e-05,2]
[420942729,1776769523083,-3900.0,8.445e-05,2]
[420942730,1776769547874,-1100.0,8.445e-05,2]
[420942731,1776769547897,-538.0,8.445e-05,2]
[420942732,1776769553814,42.0,8.6e-05,2]
[420942735,1776769830048,234.26089,4.009e-05,2]
[420942790,1776769838743,-300.0,8.512e-05,2]
[420942791,1776769838754,-1200.0,8.512e-05,2]
[420942792,1776769838763,-300.0,8.512e-05,2]
[420942793,1776769838772,-173.0,8.512e-05,2]
[420942794,1776769838782,-201.17505419,8.513e-05,2]
[420942795,1776769838793,-4798.82494581,8.513e-05,2]
[420942796,1776769838802,-334.19154949,8.608e-05,2]
[420942797,1776769838812,-163.778413,8.617e-05,2]
[420942798,1776769838822,-300.0,8.701e-05,2]
[420942799,1776769838831,-300.0,8.701e-05,2]
[420942800,1776769838841,-300.0,8.701e-05,2]
[420942801,1776769838850,-300.0,8.701e-05,2]
[420942802,1776769838860,-300.0,8.701e-05,2]
[420942803,1776769838869,-300.0,8.701e-05,2]
[420942804,1776769838880,-300.0,8.701e-05,2]
[420942805,1776769838889,-300.0,8.701e-05,2]
[420942806,1776769838899,-300.0,8.701e-05,2]
[420942807,1776769838908,-300.0,8.701e-05,2]
[420942808,1776769838917,-300.0,8.701e-05,2]
[420942809,1776769838926,-300.0,8.701e-05,2]
[420942810,1776769838935,-300.0,8.701e-05,2]
[420942811,1776769838945,-300.0,8.701e-05,2]
[420942812,1776769838954,-300.0,8.701e-05,2]
[420942813,1776769838963,-4166.76818797,8.701e-05,2]
[420942814,1776769838975,-3747.35665987,8.701e-05,2]
[420942815,1776769838984,-1422.0,9.363e-05,2]
[420942816,1776769838993,-420.0,9.363e-05,2]
[420942817,1776769839002,-163.778413,9.4e-05,2]
[420942818,1776769839011,-416.0,0.00010133,2]
[420942819,1776769839021,-416.0,0.00010133,2]
[420942820,1776769839030,-416.0,0.00010133,2]
[420942821,1776769839039,-416.0,0.00010133,2]
[420942822,1776769839049,-416.0,0.00010133,2]
[420942823,1776769839058,-416.0,0.00010133,2]
[420942824,1776769839068,-416.0,0.00010133,2]
[420942825,1776769839077,-416.0,0.00010133,2]
[420942826,1776769839087,-416.0,0.00010133,2]
[420942827,1776769839096,-416.0,0.00010133,2]
[420942828,1776769839106,-416.0,0.00010133,2]
[420942829,1776769839115,-416.0,0.00010133,2]
[420942830,1776769839124,-416.0,0.00010133,2]
[420942831,1776769839133,-416.0,0.00010133,2]
[420942832,1776769839143,-416.0,0.00010133,2]
[420942833,1776769839152,-416.0,0.00010133,2]
[420942834,1776769839161,-416.0,0.00010133,2]
[420942835,1776769839171,-416.0,0.00010133,2]
[420942836,1776769839180,-416.0,0.00010133,2]
[420942837,1776769839189,-416.0,0.00010133,2]
[420942838,1776769839198,-416.0,0.00010133,2]
[420942839,1776769839208,-416.0,0.00010133,2]
[420942840,1776769839217,-416.0,0.00010133,2]
[420942841,1776769839226,-432.0,0.00010133,2]
[420942842,1776769839236,-151.5,0.00010133,2]
[420942843,1776769839245,-587.0,0.000103,2]
[420942844,1776769839254,-1295.10060315,0.00010385,2]
[420942845,1776769839264,-1789.41541207,0.000104,10]
[420942846,1776769839273,-166.0,0.000104,2]
[420942847,1776769839282,-161.45372911,0.000104,2]
[420942848,1776769839292,-166.0,0.000104,2]
[420942849,1776769839301,-166.0,0.000104,2]
[420942850,1776769839310,-648.0,0.000104,2]
[420942851,1776769839319,-166.0,0.000104,2]
[420942852,1776769839328,-648.0,0.000104,2]
[420942853,1776769839338,-340.0,0.000104,2]
[420942854,1776769839347,-166.0,0.000104,2]
[420942855,1776769839356,-648.0,0.000104,2]
[420942856,1776769839366,-340.0,0.000104,2]
[420942857,1776769839375,-648.0,0.000104,2]
[420942858,1776769839385,-241.34903187,0.000104,2]
[420942859,1776769839394,-648.0,0.000104,2]
[420942860,1776769839403,-340.0,0.000104,2]
[420942861,1776769839413,-648.0,0.000104,2]
[420942862,1776769839423,-192.03189568,0.000104,2]
[420942863,1776769839432,-648.0,0.000104,2]
[420942864,1776769839441,-648.0,0.000104,2]
[420942865,1776769839451,-648.0,0.000104,2]
[420942866,1776769839461,-648.0,0.000104,2]
[420942867,1776769839470,-648.0,0.000104,2]
[420942868,1776769839480,-166.0,0.000104,2]
[420942869,1776769839489,-648.0,0.000104,2]
[420942870,1776769839499,-172.0,0.000104,2]
[420942871,1776769839508,-648.0,0.000104,2]
[420942872,1776769839518,-151.6639137,0.000104,2]
[420942873,1776769839527,-648.0,0.000104,2]
[420942874,1776769839537,-648.0,0.000104,2]
[420942875,1776769839546,-648.0,0.000104,2]
[420942876,1776769839556,-648.0,0.000104,2]
[420942877,1776769839565,-648.0,0.000104,2]
[420942878,1776769839574,-648.0,0.000104,2]
[420942879,1776769839584,-648.0,0.000104,2]
[420942880,1776769839594,-681.07769326,0.000104,2]
[420942881,1776769839606,-500.0,0.00010406,2]
[420942882,1776769839616,-500.0,0.00010406,2]
[420942883,1776769839625,-500.0,0.00010406,2]
[420942884,1776769839635,-500.0,0.00010406,2]
[420942885,1776769839644,-500.0,0.00010406,2]
[420942886,1776769839654,-157.43769363,0.00010406,2]
[420942887,1776769839663,-500.0,0.00010406,2]
[420942888,1776769839673,-500.0,0.00010406,2]
[420942889,1776769839682,-489.89712409,0.00010406,2]
[420942890,1776769839692,-500.0,0.00010406,2]
[420942891,1776769839702,-500.0,0.00010406,2]
[420942892,1776769839711,-500.0,0.00010406,2]
[420942893,1776769839721,-500.0,0.00010406,2]
[420942894,1776769839730,-500.0,0.00010406,2]
[420942895,1776769839740,-304.9654876,0.00010406,2]
[420942897,1776769839749,-500.0,0.00010406,2]
[420942899,1776769839758,-286.54948784,0.00010406,2]
[420942901,1776769839768,-500.0,0.00010406,2]
[420942902,1776769839778,-500.0,0.00010406,2]
[420942903,1776769839787,-500.0,0.00010406,2]
[420942904,1776769839796,-500.0,0.00010406,2]
[420942905,1776769839806,-500.0,0.00010406,2]
[420942906,1776769839815,-500.0,0.00010406,2]
[420942907,1776769839825,-500.0,0.00010406,2]
[420942908,1776769839834,-158.26979923,0.00010407,2]
[420942909,1776769839844,-39707.4235382,0.00010408,2]
[420942910,1776769839854,-2555.78940681,0.00010485,2]
[420942911,1776769839863,-200.0,0.0001052,2]
[420942912,1776769839873,-200.0,0.0001052,2]
[420942913,1776769839882,-200.0,0.0001052,2]
[420942914,1776769839892,-200.0,0.0001052,2]
[420942915,1776769839901,-200.12704088,0.0001052,2]
[420942916,1776769839910,-455.7675055,0.0001052,2]
[420942917,1776769839920,-5279.2211724,0.00010543,2]
[420942918,1776769839929,-2816.06868756,0.00010585,2]
[420942919,1776769839939,-394.3460284,0.00010608,2]
[420942920,1776769839948,-600.0,0.00010615,2]
[420942921,1776769839958,-3020.28586655,0.00010685,2]
[420942922,1776769839967,-609.0,0.00010725,2]
[420942923,1776769839977,-609.0,0.00010725,2]
[420942924,1776769839987,-609.0,0.00010725,2]
[420942925,1776769839996,-609.0,0.00010725,2]
[420942926,1776769840006,-609.0,0.00010725,2]
[420942927,1776769840015,-609.0,0.00010725,2]
[420942928,1776769840025,-609.0,0.00010725,2]
[420942929,1776769840035,-609.0,0.00010725,2]
[420942930,1776769840044,-609.0,0.00010725,2]
[420942931,1776769840054,-609.0,0.00010725,2]
[420942932,1776769840063,-609.0,0.00010725,2]
[420942933,1776769840073,-609.0,0.00010725,2]
[420942934,1776769840082,-609.0,0.00010725,2]
[420942935,1776769840092,-609.0,0.00010725,2]
[420942936,1776769840101,-609.0,0.00010725,2]
[420942939,1776769840111,-609.0,0.00010725,2]
[420942941,1776769840120,-609.0,0.00010725,2]
[420942943,1776769840129,-609.0,0.00010725,2]
[420942945,1776769840139,-609.0,0.00010725,2]
[420942947,1776769840148,-609.0,0.00010725,2]
[420942949,1776769840158,-609.0,0.00010725,2]
[420942951,1776769840168,-609.0,0.00010725,2]
[420942953,1776769840179,-609.0,0.00010725,2]
[420942954,1776769840188,-614.90603881,0.00010725,2]
[420942955,1776769840198,-2363.327016,0.00010787,2]
[420942956,1776769840207,-3428.72022478,0.00010885,2]
[420942957,1776769840217,-58291.17578839,0.00011,2]
[420942958,1776769840226,-151.0,0.00011,2]
[420942959,1776769840236,-151.0,0.00011,2]
[420942960,1776769840246,-537.6845,0.00011122,2]
[420942961,1776769840255,-445.202766,0.00011122,2]
[420942962,1776769840264,-151.0,0.00011122,2]
[420942963,1776769840274,-151.0,0.00011122,2]
[420942964,1776769840283,-151.0,0.00011122,2]
[420942965,1776769840292,-1957.856,0.00011122,2]
[420942966,1776769840302,-151.0,0.00011122,2]
[420942967,1776769840311,-151.0,0.00011122,2]
[420942968,1776769840320,-151.0,0.00011122,2]
[420942969,1776769840330,-537.6845,0.00011122,2]
[420942970,1776769840339,-151.0,0.00011122,2]
[420942971,1776769840348,-151.0,0.00011122,2]
[420942972,1776769840358,-151.0,0.00011122,2]
[420942973,1776769840368,-151.0,0.00011122,2]
[420942974,1776769840377,-151.0,0.00011122,2]
[420942975,1776769840387,-151.0,0.00011122,2]
[420942976,1776769840396,-151.0,0.00011122,2]
[420942977,1776769840405,-151.0,0.00011122,2]
[420942978,1776769840414,-151.0,0.00011122,2]
[420942979,1776769840423,-151.0,0.00011122,2]
[420942980,1776769840433,-151.0,0.00011122,2]
[420942981,1776769840442,-151.0,0.00011122,2]
[420942982,1776769840451,-151.0,0.00011122,2]
[420942983,1776769840461,-151.0,0.00011122,2]
[420942984,1776769840471,-2150.738,0.00011122,2]
[420942985,1776769840480,-557.5788265,0.00011177,2]
[420942986,1776769840489,-160.6059287,0.00011177,2]
[420942987,1776769840503,-1869.6907433,0.00011177,2]
[420942988,1776769840512,-2363.327016,0.00011223,2]
[420942989,1776769840522,-578.20924308,0.00011232,2]
[420942990,1776769840531,-2105.41764886,0.00011232,2]
[420942991,1776769840541,-599.60298507,0.00011287,2]
[420942992,1776769840550,-2183.31810187,0.00011287,2]
[420942993,1776769840559,-621.78829552,0.00011342,2]
[420942994,1776769840569,-332.32103323,0.00011342,2]
[420942995,1776769840578,-644.79446246,0.00011397,2]
[420942996,1776769840588,-151.0,0.00011401,2]
[420942997,1776769840597,-668.65185757,0.00011452,2]
[420942998,1776769840606,-693.3919763,0.00011507,2]
[420942999,1776769840616,-719.04747942,0.00011562,2]
[420943000,1776769840625,-745.65223616,0.00011617,2]
[420943001,1776769840634,-2363.327016,0.00011659,2]
[420943003,1776769840643,-151.0,0.00011659,2]
[420943004,1776769840653,-461.67526834,0.0001167,2]
[420943005,1776769840662,-557.5788265,0.0001167,2]
[420943006,1776769840671,-2230.315306,0.0001167,2]
[420943007,1776769840680,-773.2413689,0.00011672,2]
[420943008,1776769840689,-720.0,0.00011676,2]
[420943010,1776769840698,-801.85129955,0.00011727,2]
[420943012,1776769840707,-831.51979763,0.00011782,2]
[420943014,1776769840717,-862.28603014,0.00011837,2]
[420943016,1776769840726,-648.0,0.00011856,2]
[420943018,1776769840735,-894.19061326,0.00011892,2]
[420943020,1776769840744,-319.0,0.000119,2]
[420943022,1776769840754,-927.27566595,0.00011947,2]
[420943024,1776769840763,-961.58486559,0.00012002,2]
[420943026,1776769840772,-997.16350561,0.00012057,2]
[420943028,1776769840782,-342.14539717,0.00012091,2]
[420943067,1776769841489,-1016.55999998,0.00012091,2]
[420943087,1776769846551,-851.29460285,0.00012091,2]
[420943088,1776769846561,-2363.327016,0.00012095,2]
[420943089,1776769846571,-1177.9534656,0.00012146,2]
[420943090,1776769846581,-739.0,0.00012167,2]
[420943091,1776769846591,-184.0,0.00012167,2]
[420943092,1776769846600,-441.0,0.00012167,2]
[420943093,1776769846610,-172.11121801,0.00012173,2]
[420943094,1776769846620,-296.29453531,0.00012173,2]
[420943095,1776769846630,-3837.154583,0.00012178,2]
[420943096,1776769846640,-151.0,0.00012211,2]
[420943097,1776769846650,-478.75725327,0.00012218,2]
[420943098,1776769846660,-578.20924308,0.00012218,2]
[420943099,1776769846670,-592.5980047,0.00012218,2]
[420943100,1776769968590,8188.5108813,0.00015,120]
[420943144,1776771032464,-5000.0,0.00010192,2]
[420943145,1776771032473,-300.0,0.00010295,2]
[420943147,1776771032482,-276.50962061,0.00010295,2]
[420943152,1776771032519,-23.49037939,0.00010295,2]
[420943154,1776771032528,-300.0,0.00010295,2]
[420943156,1776771032537,-1200.0,0.00010295,2]
[420943158,1776771032547,-564.0,0.00010296,2]
[420943160,1776771032556,-327.24079794,0.00010348,2]
[420943162,1776771032565,-300.0,0.00010936,2]
[420943164,1776771032575,-300.0,0.00010936,2]
[420943166,1776771032583,-300.0,0.00010936,2]
[420943168,1776771032592,-300.0,0.00010936,2]
[420943171,1776771032601,-264.48864784,0.00010936,2]
[420943174,1776771032614,-35.51135216,0.00010936,2]
[420943176,1776771032623,-300.0,0.00010936,2]
[420943177,1776771032632,-300.0,0.00010936,2]
[420943180,1776771032640,-300.0,0.00010936,2]
[420943181,1776771032649,-185.26882267,0.00010936,2]
[420943335,1776771046805,-114.73117733,0.00010936,2]
[420943336,1776771046815,-300.0,0.00010936,2]
[420943337,1776771046824,-300.0,0.00010936,2]
[420943338,1776771046834,-214.35406386,0.00010936,2]
[420943339,1776771056711,500.0,0.00025916,120]
[420943340,1776771056924,500.0,0.00025916,120]
[420943341,1776771057146,500.0,0.00025916,120]
[420943342,1776771057386,500.0,0.00025916,120]
[420943343,1776771057639,500.0,0.00025916,120]
[420943344,1776771057871,500.0,0.00025916,120]
[420943345,1776771058092,500.0,0.00025916,120]
[420943346,1776771058345,500.0,0.00025916,120]
[420943347,1776771058720,500.0,0.00025916,120]
[420943348,1776771058829,500.0,0.00025916,120]
[420943349,1776771059054,525.23205064,0.00025916,120]
[420943350,1776771114563,500.0,0.00025916,120]
[420943351,1776771114784,500.0,0.00025916,120]
[420943352,1776771115014,500.0,0.00025916,120]
[420943353,1776771115253,500.0,0.00025916,120]
[420943354,1776771115497,500.0,0.00025916,120]
[420943355,1776771115740,500.0,0.00025916,120]
[420943356,1776771115958,500.0,0.00025916,120]
[420943357,1776771116178,500.0,0.00025916,120]
[420943358,1776771116411,313.89293582,0.00025916,120]
[420943359,1776771177131,551.80761744,0.00025916,120]
[420943360,1776771183454,504.19522173,0.00025916,120]